{"text_format":"1","workbook":"xlsx","n_sheets":3,"sheets":["Ark1","Ark2","Ark3"],"not_rendered":{"charts":0,"images":0,"macros":1,"external_links":0,"defined_names":1,"comments":0,"pivot_tables":0},"unopened":[],"bounds":{"document_bytes":16777216,"sheet_cells":100000,"rows_first":2000,"rows_last":500,"rows_between":2000,"halvings":0,"cell_chars":16384,"cell_head_chars":4096},"cells_cut":0,"cells_raw":0,"read":"whole","date_system":"1900"}

{"sheet":"Ark1","index":0,"n_rows":107,"n_cols":34,"rows_kept":107,"cut":false,"hidden":false,"merged":[[0,2,2,33],[3,1,3,2],[10,1,10,2],[18,1,18,2],[29,1,29,2],[73,1,73,2],[77,1,77,2],[88,1,88,2],[93,1,93,2],[33,1,33,2],[44,1,44,2],[48,1,48,2],[58,1,58,2],[62,1,62,2]]}
[null,null,"Trial 8 sektioner "]
[]
[]
[null,"Elite",null,"klub","mc ",0,1,2,3,5,null,0,1,2,3,5,null,0,1,2,3,5,null,0,1,2,3,5,null,{"$f":"F4+L4+R4+X4","v":0},1,"straf","I alt","NR:"]
[null,null,null,null,null,null,null,null,null,null,{"$f":"IF(F5+G5+H5+I5+J5=8,(G5*1)+(H5*2)+(I5*3)+(J5*5))","v":false},null,null,null,null,null,{"$f":"IF(L5+M5+N5+O5+P5=8,(M5*1)+(N5*2)+(O5*3)+(P5*5))","v":false},null,null,null,null,null,{"$f":"IF(R5+S5+T5+U5+V5=8,(S5*1)+(T5*2)+(U5*3)+(V5*5))","v":false},null,null,null,null,null,{"$f":"IF(X5+Y5+Z5+AA5+AB5=8,(Y5*1)+(Z5*2)+(AA5*3)+(AB5*5))","v":false},{"$f":"F5+L5+R5+X5","v":0},0,null,{"$f":"AF5+AC5+W5+Q5+K5","v":0}]
[null,null,null,null,null,null,null,null,null,null,false,null,null,null,null,null,false,null,null,null,null,null,false,null,null,null,null,null,false,0,0,null,0]
[null,null,null,null,null,null,null,null,null,null,false,null,null,null,null,null,false,null,null,null,null,null,false,null,null,null,null,null,false,0,0,null,0]
[null,null,null,null,null,null,null,null,null,null,false,null,null,null,null,null,false,null,null,null,null,null,false,null,null,null,null,null,false,0,0,null,0]
[null,null,null,null,null,null,null,null,null,null,false,null,null,null,null,null,false,null,null,null,null,null,false,null,null,null,null,null,false,0,0,null,0]
[null,null,null,null,null,null,null,null,null,null,false,null,null,null,null,null,false,null,null,null,null,null,false,null,null,null,null,null,false,0,0,null,0]
[null,"Elite trim ",null,null,null,null,null,null,null,null," ",null,null,null,null,null," ",null,null,null,null,null," ",null,null,null,null,null," ",{"$f":"F11+L11+R11+X11","v":0},0,null," "]
[null,null,null,null,null,null,null,null,null,null,{"$f":"IF(F12+G12+H12+I12+J12=8,(G12*1)+(H12*2)+(I12*3)+(J12*5))","v":false},null,null,null,null,null,{"$f":"IF(L12+M12+N12+O12+P12=8,(M12*1)+(N12*2)+(O12*3)+(P12*5))","v":false},null,null,null,null,null,{"$f":"IF(R12+S12+T12+U12+V12=8,(S12*1)+(T12*2)+(U12*3)+(V12*5))","v":false},null,null,null,null,null,{"$f":"IF(X12+Y12+Z12+AA12+AB12=8,(Y12*1)+(Z12*2)+(AA12*3)+(AB12*5))","v":false},{"$f":"F12+L12+R12+X12","v":0},0,null,{"$f":"AF12+AC12+W12+Q12+K12","v":0}]
[null,null,null,null,null,null,null,null,null,null,false,null,null,null,null,null,false,null,null,null,null,null,false,null,null,null,null,null,false,0,0,null,0]
[null,null,null,null,null,null,null,null,null,null,false,null,null,null,null,null,false,null,null,null,null,null,false,null,null,null,null,null,false,0,0,null,0]
[null,null,null,null,null,null,null,null,null,null,false,null,null,null,null,null,false,null,null,null,null,null,false,null,null,null,null,null,false,0,0,null,0]
[null,null,null,null,null,null,null,null,null,null,false,null,null,null,null,null,false,null,null,null,null,null,false,null,null,null,null,null,false,0,0,null,0]
[null,null,null,null,null,null,null,null,null,null,false,null,null,null,null,null,false,null,null,null,null,null,false,null,null,null,null,null,false,0,0,null,0]
[null,null,null,null,null,null,null,null,null,null,false,null,null,null,null,null,false,null,null,null,null,null,false,null,null,null,null,null,false,0,0,null,0]
[null,"A",null,"klub","mc ",0,1,2,3,5," ",0,1,2,3,5," ",0,1,2,3,5," ",0,1,2,3,5," ",0,1,"straf"," ","NR:"]
[null,null,null,null,null,null,null,null,null,null,{"$f":"IF(F20+G20+H20+I20+J20=8,(G20*1)+(H20*2)+(I20*3)+(J20*5))","v":false},null,null,null,null,null,{"$f":"IF(L20+M20+N20+O20+P20=8,(M20*1)+(N20*2)+(O20*3)+(P20*5))","v":false},null,null,null,null,null,{"$f":"IF(R20+S20+T20+U20+V20=8,(S20*1)+(T20*2)+(U20*3)+(V20*5))","v":false},null,null,null,null,null,{"$f":"IF(X20+Y20+Z20+AA20+AB20=8,(Y20*1)+(Z20*2)+(AA20*3)+(AB20*5))","v":false},{"$f":"F20+L20+R20+X20","v":0},{"$f":"G20+M20+S20+Y20","v":0},null,{"$f":"AF20+AC20+W20+Q20+K20","v":0}]
[null,null,null,null,null,null,null,null,null,null,false,null,null,null,null,null,false,null,null,null,null,null,false,null,null,null,null,null,false,0,0,null,0]
[null,null,null,null,null,null,null,null,null,null,false,null,null,null,null,null,false,null,null,null,null,null,false,null,null,null,null,null,false,0,0,null,0]
[null,null,null,null,null,null,null,null,null,null,false,null,null,null,null,null,false,null,null,null,null,null,false,null,null,null,null,null,false,0,0,null,0]
[null,null,null,null,null,null,null,null,null,null,false,null,null,null,null,null,false,null,null,null,null,null,false,null,null,null,null,null,false,0,0,null,0]
[null,null,null,null,null,null,null,null,null,null,false,null,null,null,null,null,false,null,null,null,null,null,false,null,null,null,null,null,false,0,0,null,0]
[null,null,null,null,null,null,null,null,null,null,false,null,null,null,null,null,false,null,null,null,null,null,false,null,null,null,null,null,false,0,0,null,0]
[null,null,null,null,null,null,null,null,null,null,false,null,null,null,null,null,false,null,null,null,null,null,false,null,null,null,null,null,false,0,0,null,0]
[null,null,null,null,null,null,null,null,null,null,false,null,null,null,null,null,false,null,null,null,null,null,false,null,null,null,null,null,false,0,0,null,0]
[null,null,null,null,null,null,null,null,null,null,false,null,null,null,null,null,false,null,null,null,null,null,false,null,null,null,null,null,false,0,0,null,0]
[null,"A Trim ",null,null,null,null,null,null,null,null," ",null,null,null,null,null," ",null,null,null,null,null," ",null,null,null,null,null," ",{"$f":"F30+L30+R30+X30","v":0},0,null," "]
[null,null,null,null,null,null,null,null,null,null,{"$f":"IF(F31+G31+H31+I31+J31=8,(G31*1)+(H31*2)+(I31*3)+(J31*5))","v":false},null,null,null,null,null,{"$f":"IF(L31+M31+N31+O31+P31=8,(M31*1)+(N31*2)+(O31*3)+(P31*5))","v":false},null,null,null,null,null,{"$f":"IF(R31+S31+T31+U31+V31=8,(S31*1)+(T31*2)+(U31*3)+(V31*5))","v":false},null,null,null,null,null,{"$f":"IF(X31+Y31+Z31+AA31+AB31=8,(Y31*1)+(Z31*2)+(AA31*3)+(AB31*5))","v":false},{"$f":"F31+L31+R31+X31","v":0},0,null,{"$f":"AF31+AC31+W31+Q31+K31","v":0}]
[null,null,null,null,null,null,null,null,null,null,{"$f":"IF(F32+G32+H32+I32+J32=8,(G32*1)+(H32*2)+(I32*3)+(J32*5))","v":false},null,null,null,null,null,{"$f":"IF(L32+M32+N32+O32+P32=8,(M32*1)+(N32*2)+(O32*3)+(P32*5))","v":false},null,null,null,null,null,{"$f":"IF(R32+S32+T32+U32+V32=8,(S32*1)+(T32*2)+(U32*3)+(V32*5))","v":false},null,null,null,null,null,{"$f":"IF(X32+Y32+Z32+AA32+AB32=8,(Y32*1)+(Z32*2)+(AA32*3)+(AB32*5))","v":false},0,0,null,{"$f":"AF32+AC32+W32+Q32+K32","v":0}]
[null,null,null,null,null,null,null,null,null,null,{"$f":"IF(F33+G33+H33+I33+J33=8,(G33*1)+(H33*2)+(I33*3)+(J33*5))","v":false},null,null,null,null,null,{"$f":"IF(L33+M33+N33+O33+P33=8,(M33*1)+(N33*2)+(O33*3)+(P33*5))","v":false},null,null,null,null,null,{"$f":"IF(R33+S33+T33+U33+V33=8,(S33*1)+(T33*2)+(U33*3)+(V33*5))","v":false},null,null,null,null,null,{"$f":"IF(X33+Y33+Z33+AA33+AB33=8,(Y33*1)+(Z33*2)+(AA33*3)+(AB33*5))","v":false},0,0,null,{"$f":"AF33+AC33+W33+Q33+K33","v":0}]
[null,"B",null,"klub","mc ",0,1,2,3,5," ",0,1,2,3,5," ",0,1,2,3,5," ",0,1,2,3,5," ",0,1,"straf"," ","NR:"]
[null,null,null,null,null,null,null,null,null,null,{"$f":"IF(F35+G35+H35+I35+J35=8,(G35*1)+(H35*2)+(I35*3)+(J35*5))","v":false},null,null,null,null,null,{"$f":"IF(L35+M35+N35+O35+P35=8,(M35*1)+(N35*2)+(O35*3)+(P35*5))","v":false},null,null,null,null,null,{"$f":"IF(R35+S35+T35+U35+V35=8,(S35*1)+(T35*2)+(U35*3)+(V35*5))","v":false},null,null,null,null,null,{"$f":"IF(X35+Y35+Z35+AA35+AB35=8,(Y35*1)+(Z35*2)+(AA35*3)+(AB35*5))","v":false},{"$f":"F35+L35+R35+X35","v":0},{"$f":"G35+M35+S35+Y35","v":0},null,{"$f":"AF35+AC35+W35+Q35+K35","v":0}]
[null,null,null,null,null,null,null,null,null,null,false,null,null,null,null,null,false,null,null,null,null,null,false,null,null,null,null,null,false,0,0,null,0]
[null,null,null,null,null,null,null,null,null,null,false,null,null,null,null,null,false,null,null,null,null,null,false,null,null,null,null,null,false,0,0,null,0]
[null,null,null,null,null,null,null,null,null,null,false,null,null,null,null,null,false,null,null,null,null,null,false,null,null,null,null,null,false,0,0,null,0]
[null,null,null,null,null,null,null,null,null,null,false,null,null,null,null,null,false,null,null,null,null,null,false,null,null,null,null,null,false,0,0,null,0]
[null,null,null,null,null,null,null,null,null,null,false,null,null,null,null,null,false,null,null,null,null,null,false,null,null,null,null,null,false,0,0,null,0]
[null,null,null,null,null,null,null,null,null,null,false,null,null,null,null,null,false,null,null,null,null,null,false,null,null,null,null,null,false,0,0,null,0]
[null,null,null,null,null,null,null,null,null,null,false,null,null,null,null,null,false,null,null,null,null,null,false,null,null,null,null,null,false,0,0,null,0]
[null,null,null,null," ",null,null,null,null,null,false,null,null,null,null,null,false,null,null,null,null,null,false,null,null,null,null,null,false,0,0,null,0]
[null,null,null,null,null,null,null,null,null,null,false,null,null,null,null,null,false,null,null,null,null,null,false,null,null,null,null,null,false,0,0,null,0]
[null,"B Trim ",null,null,null,null,null,null,null,null," ",null,null,null,null,null," ",null,null,null,null,null," ",null,null,null,null,null," ",0,0,null," "]
[null,null,null,null,null,null,null,null,null,null,{"$f":"IF(F46+G46+H46+I46+J46=8,(G46*1)+(H46*2)+(I46*3)+(J46*5))","v":false},null,null,null,null,null,{"$f":"IF(L46+M46+N46+O46+P46=8,(M46*1)+(N46*2)+(O46*3)+(P46*5))","v":false},null,null,null,null,null,{"$f":"IF(R46+S46+T46+U46+V46=8,(S46*1)+(T46*2)+(U46*3)+(V46*5))","v":false},null,null,null,null,null,{"$f":"IF(X46+Y46+Z46+AA46+AB46=8,(Y46*1)+(Z46*2)+(AA46*3)+(AB46*5))","v":false},{"$f":"F46+L46+R46+X46","v":0},0,null,{"$f":"AF46+AC46+W46+Q46+K46","v":0}]
[null,null,null,null,null,null,null,null,null,null,{"$f":"IF(F47+G47+H47+I47+J47=8,(G47*1)+(H47*2)+(I47*3)+(J47*5))","v":false},null,null,null,null,null,{"$f":"IF(L47+M47+N47+O47+P47=8,(M47*1)+(N47*2)+(O47*3)+(P47*5))","v":false},null,null,null,null,null,{"$f":"IF(R47+S47+T47+U47+V47=8,(S47*1)+(T47*2)+(U47*3)+(V47*5))","v":false},null,null,null,null,null,{"$f":"IF(X47+Y47+Z47+AA47+AB47=8,(Y47*1)+(Z47*2)+(AA47*3)+(AB47*5))","v":false},0,0,null,{"$f":"AF47+AC47+W47+Q47+K47","v":0}]
[null,null,null,null,null,null,null,null,null,null,{"$f":"IF(F48+G48+H48+I48+J48=8,(G48*1)+(H48*2)+(I48*3)+(J48*5))","v":false},null,null,null,null,null,{"$f":"IF(L48+M48+N48+O48+P48=8,(M48*1)+(N48*2)+(O48*3)+(P48*5))","v":false},null,null,null,null,null,{"$f":"IF(R48+S48+T48+U48+V48=8,(S48*1)+(T48*2)+(U48*3)+(V48*5))","v":false},null,null,null,null,null,{"$f":"IF(X48+Y48+Z48+AA48+AB48=8,(Y48*1)+(Z48*2)+(AA48*3)+(AB48*5))","v":false},0,0,null,{"$f":"AF48+AC48+W48+Q48+K48","v":0}]
[null,40,null,"klub","mc",0,1,2,3,5," ",0,1,2,3,5," ",0,1,2,3,5," ",0,1,2,3,5," ",0,1,"straf"," ","NR:"]
[null,null,null,null,null,null,null,null,null,null,{"$f":"IF(F50+G50+H50+I50+J50=8,(G50*1)+(H50*2)+(I50*3)+(J50*5))","v":false},null,null,null,null,null,{"$f":"IF(L50+M50+N50+O50+P50=8,(M50*1)+(N50*2)+(O50*3)+(P50*5))","v":false},null,null,null,null,null,{"$f":"IF(R50+S50+T50+U50+V50=8,(S50*1)+(T50*2)+(U50*3)+(V50*5))","v":false},null,null,null,null,null,{"$f":"IF(X50+Y50+Z50+AA50+AB50=8,(Y50*1)+(Z50*2)+(AA50*3)+(AB50*5))","v":false},{"$f":"F50+L50+R50+X50","v":0},{"$f":"G50+M50+S50+Y50","v":0},null,{"$f":"AF50+AC50+W50+Q50+K50","v":0}]
[null,null,null,null,null,null,null,null,null,null,false,null,null,null,null,null,false,null,null,null,null,null,false,null,null,null,null,null,false,0,0,null,0]
[null,null,null,null,null,null,null,null,null,null,false,null,null,null,null,null,false,null,null,null,null,null,false,null,null,null,null,null,false,0,0,null,0]
[null,null,null,null,null,null,null,null,null,null,false,null,null,null,null,null,false,null,null,null,null,null,false,null,null,null,null,null,false,0,0,null,0]
[null,null,null,null,null,null,null,null,null,null,false,null,null,null,null,null,false,null,null,null,null,null,false,null,null,null,null,null,false,0,0,null,0]
[null,null,null,null,null,null,null,null,null,null,false,null,null,null,null,null,false,null,null,null,null,null,false,null,null,null,null,null,false,0,0,null,0]
[null,null,null,null,null,null,null,null,null,null,false,null,null,null,null,null,false,null,null,null,null,null,false,null,null,null,null,null,false,0,0,null,0]
[null,null,null,null,null,null,null,null,null,null,false,null,null,null,null,null,false,null,null,null,null,null,false,null,null,null,null,null,false,0,0,null,0]
[null,null,null,null,null,null,null,null,null,null,false,null,null,null,null,null,false,null,null,null,null,null,false,null,null,null,null,null,false,0,0,null,0]
[null,"+ 40 trim  ",null,null,null,null,null,null,null,null," ",null,null,null,null,null," ",null,null,null,null,null," ",null,null,null,null,null," ",0,0,null," "]
[null,null,null,null,null,null,null,null,null,null,{"$f":"IF(F60+G60+H60+I60+J60=8,(G60*1)+(H60*2)+(I60*3)+(J60*5))","v":false},null,null,null,null,null,{"$f":"IF(L60+M60+N60+O60+P60=8,(M60*1)+(N60*2)+(O60*3)+(P60*5))","v":false},null,null,null,null,null,{"$f":"IF(R60+S60+T60+U60+V60=8,(S60*1)+(T60*2)+(U60*3)+(V60*5))","v":false},null,null,null,null,null,{"$f":"IF(X60+Y60+Z60+AA60+AB60=8,(Y60*1)+(Z60*2)+(AA60*3)+(AB60*5))","v":false},{"$f":"F60+L60+R60+X60","v":0},0,null,{"$f":"AF60+AC60+W60+Q60+K60","v":0}]
[null,null,null,null,null,null,null,null,null,null,{"$f":"IF(F61+G61+H61+I61+J61=8,(G61*1)+(H61*2)+(I61*3)+(J61*5))","v":false},null,null,null,null,null,{"$f":"IF(L61+M61+N61+O61+P61=8,(M61*1)+(N61*2)+(O61*3)+(P61*5))","v":false},null,null,null,null,null,{"$f":"IF(R61+S61+T61+U61+V61=8,(S61*1)+(T61*2)+(U61*3)+(V61*5))","v":false},null,null,null,null,null,{"$f":"IF(X61+Y61+Z61+AA61+AB61=8,(Y61*1)+(Z61*2)+(AA61*3)+(AB61*5))","v":false},0,0,null,{"$f":"AF61+AC61+W61+Q61+K61","v":0}]
[null,null,null,null,null,null,null,null,null,null,{"$f":"IF(F62+G62+H62+I62+J62=8,(G62*1)+(H62*2)+(I62*3)+(J62*5))","v":false},null,null,null,null,null,{"$f":"IF(L62+M62+N62+O62+P62=8,(M62*1)+(N62*2)+(O62*3)+(P62*5))","v":false},null,null,null,null,null,{"$f":"IF(R62+S62+T62+U62+V62=8,(S62*1)+(T62*2)+(U62*3)+(V62*5))","v":false},null,null,null,null,null,{"$f":"IF(X62+Y62+Z62+AA62+AB62=8,(Y62*1)+(Z62*2)+(AA62*3)+(AB62*5))","v":false},0,0,null,{"$f":"AF62+AC62+W62+Q62+K62","v":0}]
[null,"+40 expert",null,"klub","mc",0,1,2,3,5," ",0,1,2,3,5," ",0,1,2,3,5," ",0,1,2,3,5," ",0,1,"straf"," ","NR:"]
[null,null,null,null,null,null,null,null,null,null,{"$f":"IF(F64+G64+H64+I64+J64=8,(G64*1)+(H64*2)+(I64*3)+(J64*5))","v":false},null,null,null,null,null,{"$f":"IF(L64+M64+N64+O64+P64=8,(M64*1)+(N64*2)+(O64*3)+(P64*5))","v":false},null,null,null,null,null,{"$f":"IF(R64+S64+T64+U64+V64=8,(S64*1)+(T64*2)+(U64*3)+(V64*5))","v":false},null,null,null,null,null,{"$f":"IF(X64+Y64+Z64+AA64+AB64=8,(Y64*1)+(Z64*2)+(AA64*3)+(AB64*5))","v":false},{"$f":"F64+L64+R64+X64","v":0},{"$f":"G64+M64+S64+Y64","v":0},null,{"$f":"AF64+AC64+W64+Q64+K64","v":0}]
[null,null,null,null,null,null,null,null,null,null,false,null,null,null,null,null,false,null,null,null,null,null,false,null,null,null,null,null,false,0,0,null,0]
[null,null,null,null,null,null,null,null,null,null,false,null,null,null,null,null,false,null,null,null,null,null,false,null,null,null,null,null,false,0,0,null,0]
[null,null,null,null,null,null,null,null,null,null,false,null,null,null,null,null,false,null,null,null,null,null,false,null,null,null,null,null,false,0,0,null,0]
[null,null,null,null,null,null,null,null,null,null,false,null,null,null,null,null,false,null,null,null,null,null,false,null,null,null,null,null,false,0,0,null,0]
[null,null,null,null,null,null,null,null,null,null,false,null,null,null,null,null,false,null,null,null,null,null,false,null,null,null,null,null,false,0,0,null,0]
[null,null,null,null,null,null,null,null,null,null,false,null,null,null,null,null,false,null,null,null,null,null,false,null,null,null,null,null,false,0,0,null,0]
[null,null,null,null,null,null,null,null,null,null,false,null,null,null,null,null,false,null,null,null,null,null,false,null,null,null,null,null,false,0,0,null,0]
[null,null,null,null,null,null,null,null,null,null,false,null,null,null,null,null,false,null,null,null,null,null,false,null,null,null,null,null,false,0,0,null,0]
[null,null,null,null,null,null,null,null,null,null,false,null,null,null,null,null,false,null,null,null,null,null,false,null,null,null,null,null,false,0,0,null,0]
[null,"+40 Expert trim ",null,null,null,null,null,null,null,null," ",null,null,null,null,null," ",null,null,null,null,null," ",null,null,null,null,null," ",0,0,null," "]
[null,null,null,null,null,null,null,null,null,null,{"$f":"IF(F75+G75+H75+I75+J75=8,(G75*1)+(H75*2)+(I75*3)+(J75*5))","v":false},null,null,null,null,null,{"$f":"IF(L75+M75+N75+O75+P75=8,(M75*1)+(N75*2)+(O75*3)+(P75*5))","v":false},null,null,null,null,null,{"$f":"IF(R75+S75+T75+U75+V75=8,(S75*1)+(T75*2)+(U75*3)+(V75*5))","v":false},null,null,null,null,null,{"$f":"IF(X75+Y75+Z75+AA75+AB75=8,(Y75*1)+(Z75*2)+(AA75*3)+(AB75*5))","v":false},{"$f":"F75+L75+R75+X75","v":0},0,null,{"$f":"AF75+AC75+W75+Q75+K75","v":0}]
[null,null,null,null,null,null,null,null,null,null,{"$f":"IF(F76+G76+H76+I76+J76=8,(G76*1)+(H76*2)+(I76*3)+(J76*5))","v":false},null,null,null,null,null,{"$f":"IF(L76+M76+N76+O76+P76=8,(M76*1)+(N76*2)+(O76*3)+(P76*5))","v":false},null,null,null,null,null,{"$f":"IF(R76+S76+T76+U76+V76=8,(S76*1)+(T76*2)+(U76*3)+(V76*5))","v":false},null,null,null,null,null,{"$f":"IF(X76+Y76+Z76+AA76+AB76=8,(Y76*1)+(Z76*2)+(AA76*3)+(AB76*5))","v":false},0,0,null,{"$f":"AF76+AC76+W76+Q76+K76","v":0}]
[null,null,null,null,null,null,null,null,null,null,{"$f":"IF(F77+G77+H77+I77+J77=8,(G77*1)+(H77*2)+(I77*3)+(J77*5))","v":false},null,null,null,null,null,{"$f":"IF(L77+M77+N77+O77+P77=8,(M77*1)+(N77*2)+(O77*3)+(P77*5))","v":false},null,null,null,null,null,{"$f":"IF(R77+S77+T77+U77+V77=8,(S77*1)+(T77*2)+(U77*3)+(V77*5))","v":false},null,null,null,null,null,{"$f":"IF(X77+Y77+Z77+AA77+AB77=8,(Y77*1)+(Z77*2)+(AA77*3)+(AB77*5))","v":false},0,0,null,{"$f":"AF77+AC77+W77+Q77+K77","v":0}]
[null,"Classic ",null,"klub","mc",0,1,2,3,5," ",0,1,2,3,5," ",0,1,2,3,5," ",0,1,2,3,5," ",0,1,"straf"," ","NR:"]
[null,null,null,null,null,null,null,null,null,null,{"$f":"IF(F79+G79+H79+I79+J79=8,(G79*1)+(H79*2)+(I79*3)+(J79*5))","v":false},null,null,null,null,null,{"$f":"IF(L79+M79+N79+O79+P79=8,(M79*1)+(N79*2)+(O79*3)+(P79*5))","v":false},null,null,null,null,null,{"$f":"IF(R79+S79+T79+U79+V79=8,(S79*1)+(T79*2)+(U79*3)+(V79*5))","v":false},null,null,null,null,null,{"$f":"IF(X79+Y79+Z79+AA79+AB79=8,(Y79*1)+(Z79*2)+(AA79*3)+(AB79*5))","v":false},{"$f":"F79+L79+R79+X79","v":0},{"$f":"G79+M79+S79+Y79","v":0},null,{"$f":"AF79+AC79+W79+Q79+K79","v":0}]
[null,null,null,null,null,null,null,null,null,null,false,null,null,null,null,null,false,null,null,null,null,null,false,null,null,null,null,null,false,0,0,null,0]
[null,null,null,null,null,null,null,null,null,null,false,null,null,null,null,null,false,null,null,null,null,null,false,null,null,null,null,null,false,0,0,null,0]
[null,null,null,null,null,null,null,null,null,null,false,null,null,null,null,null,false,null,null,null,null,null,false,null,null,null,null,null,false,0,0,null,0]
[null,null,null,null,null,null,null,null,null,null,false,null,null,null,null,null,false,null,null,null,null,null,false,null,null,null,null,null,false,0,0,null,0]
[null,null,null,null,null,null,null,null,null,null,false,null,null,null,null,null,false,null,null,null,null,null,false,null,null,null,null,null,false,0,0,null,0]
[null,null,null,null,null,null,null,null,null,null,false,null,null,null,null,null,false,null,null,null,null,null,false,null,null,null,null,null,false,0,0,null,0]
[null,null,null,null,null,null,null,null,null,null,false,null,null,null,null,null,false,null,null,null,null,null,false,null,null,null,null,null,false,0,0,null,0]
[null,null,null,null,null,null,null,null,null,null,false,null,null,null,null,null,false,null,null,null,null,null,false,null,null,null,null,null,false,0,0,null,0]
[null,null,null,null,null,null,null,null,null,null,false,null,null,null,null,null,false,null,null,null,null,null,false,null,null,null,null,null,false,0,0,null,0]
[null,"Classic trim ",null,null,null,null,null,null,null,null," ",null,null,null,null,null," ",null,null,null,null,null," ",null,null,null,null,null," ",{"$f":"F89+L89+R89+X89","v":0},0,null," "]
[null,null,null,null,null,null,null,null,null,null,{"$f":"IF(F90+G90+H90+I90+J90=8,(G90*1)+(H90*2)+(I90*3)+(J90*5))","v":false},null,null,null,null,null,{"$f":"IF(L90+M90+N90+O90+P90=8,(M90*1)+(N90*2)+(O90*3)+(P90*5))","v":false},null,null,null,null,null,{"$f":"IF(R90+S90+T90+U90+V90=8,(S90*1)+(T90*2)+(U90*3)+(V90*5))","v":false},null,null,null,null,null,{"$f":"IF(X90+Y90+Z90+AA90+AB90=8,(Y90*1)+(Z90*2)+(AA90*3)+(AB90*5))","v":false},{"$f":"F90+L90+R90+X90","v":0},0,null,{"$f":"AF90+AC90+W90+Q90+K90","v":0}]
[null,null,null,null,null,null,null,null,null,null,{"$f":"IF(F91+G91+H91+I91+J91=8,(G91*1)+(H91*2)+(I91*3)+(J91*5))","v":false},null,null,null,null,null,{"$f":"IF(L91+M91+N91+O91+P91=8,(M91*1)+(N91*2)+(O91*3)+(P91*5))","v":false},null,null,null,null,null,{"$f":"IF(R91+S91+T91+U91+V91=8,(S91*1)+(T91*2)+(U91*3)+(V91*5))","v":false},null,null,null,null,null,{"$f":"IF(X91+Y91+Z91+AA91+AB91=8,(Y91*1)+(Z91*2)+(AA91*3)+(AB91*5))","v":false},0,0,null,{"$f":"AF91+AC91+W91+Q91+K91","v":0}]
[null,null,null,null,null,null,null,null,null,null,{"$f":"IF(F92+G92+H92+I92+J92=8,(G92*1)+(H92*2)+(I92*3)+(J92*5))","v":false},null,null,null,null,null,{"$f":"IF(L92+M92+N92+O92+P92=8,(M92*1)+(N92*2)+(O92*3)+(P92*5))","v":false},null,null,null,null,null,{"$f":"IF(R92+S92+T92+U92+V92=8,(S92*1)+(T92*2)+(U92*3)+(V92*5))","v":false},null,null,null,null,null,{"$f":"IF(X92+Y92+Z92+AA92+AB92=8,(Y92*1)+(Z92*2)+(AA92*3)+(AB92*5))","v":false},0,0,null,{"$f":"AF92+AC92+W92+Q92+K92","v":0}]
[null,null,null,null,null,null,null,null,null,null,{"$f":"IF(F93+G93+H93+I93+J93=8,(G93*1)+(H93*2)+(I93*3)+(J93*5))","v":false},null,null,null,null,null,{"$f":"IF(L93+M93+N93+O93+P93=8,(M93*1)+(N93*2)+(O93*3)+(P93*5))","v":false},null,null,null,null,null,{"$f":"IF(R93+S93+T93+U93+V93=8,(S93*1)+(T93*2)+(U93*3)+(V93*5))","v":false},null,null,null,null,null,{"$f":"IF(X93+Y93+Z93+AA93+AB93=8,(Y93*1)+(Z93*2)+(AA93*3)+(AB93*5))","v":false},0,0,null,{"$f":"AF93+AC93+W93+Q93+K93","v":0}]
[null,"C ",null,"klub","mc",0,1,2,3,5," ",0,1,2,3,5," ",0,1,2,3,5," ",0,1,2,3,5," ",0,1,null," "]
[null,null,null,null,null,null,null,null,null,null,{"$f":"IF(F95+G95+H95+I95+J95=8,(G95*1)+(H95*2)+(I95*3)+(J95*5))","v":false},null,null,null,null,null,{"$f":"IF(L95+M95+N95+O95+P95=8,(M95*1)+(N95*2)+(O95*3)+(P95*5))","v":false},null,null,null,null,null,{"$f":"IF(R95+S95+T95+U95+V95=8,(S95*1)+(T95*2)+(U95*3)+(V95*5))","v":false},null,null,null,null,null,{"$f":"IF(X95+Y95+Z95+AA95+AB95=8,(Y95*1)+(Z95*2)+(AA95*3)+(AB95*5))","v":false},{"$f":"F95+L95+R95+X95","v":0},{"$f":"G95+M95+S95+Y95","v":0},null,{"$f":"AF95+AC95+W95+Q95+K95","v":0}]
[null,null,null,null,null,null,null,null,null,null,false,null,null,null,null,null,false,null,null,null,null,null,false,null,null,null,null,null,false,0,0,null,0]
[null,null,null,null,null,null,null,null,null,null,false,null,null,null,null,null,false,null,null,null,null,null,false,null,null,null,null,null,false,0,0,null,0]
[null,null,null,null,null,null,null,null,null,null,false,null,null,null,null,null,false,null,null,null,null,null,false,null,null,null,null,null,false,0,0,null,0]
[null,null,null,null,null,null,null,null,null,null,false,null,null,null,null,null,false,null,null,null,null,null,false,null,null,null,null,null,false,0,0,null,0]
[null,null,null,null,null,null,null,null,null,null,false,null,null,null,null,null,false,null,null,null,null,null,false,null,null,null,null,null,false,0,0,null,0]
[null,null,null,null,null,null,null,null,null,null,false,null,null,null,null,null,false,null,null,null,null,null,false,null,null,null,null,null,false,0,0,null,0]
[null,null,null,null,null,null,null,null,null,null,false,null,null,null,null,null,false,null,null,null,null,null,false,null,null,null,null,null,false,0,0,null,0]
[null,null,null,null,null,null,null,null,null,null,false,null,null,null,null,null,false,null,null,null,null,null,false,null,null,null,null,null,false,0,0,null,0]
[null,null,null,null,null,null,null,null,null,null,false,null,null,null,null,null,false,null,null,null,null,null,false,null,null,null,null,null,false,0,0,null,0]
[null,null,null,null,null,null,null,null,null,null,false,null,null,null,null,null,false,null,null,null,null,null,false,null,null,null,null,null,false,0,0,null,0]
[null,null,null,null,null,null,null,null,null,null,false,null,null,null,null,null,false,null,null,null,null,null,false,null,null,null,null,null,false,0,0,null,0]
[null,null,"Crlt T ",null,null,null,null,null,null,null,false,null,null,null,null,null,false,null,null,null,null,null,false,null,null,null,null,null,false,0,0,null,0]

{"sheet":"Ark2","index":1,"n_rows":0,"n_cols":0,"rows_kept":0,"cut":false,"hidden":false,"merged":[]}

{"sheet":"Ark3","index":2,"n_rows":0,"n_cols":0,"rows_kept":0,"cut":false,"hidden":false,"merged":[]}